fUSD/lending_fUSD_20240609
["ID","MTS","AMOUNT","RATE_DAILY","PERIOD"]
[328862003,1717903833654,-443.61,0.00024354,2]
[328862004,1717903833668,-160.35,0.00024384,2]
[328862005,1717903833680,-270.47,0.00024384,2]
[328862006,1717903833694,-443.61,0.00024421,2]
[328862007,1717903833708,-443.61,0.00024487,2]
[328862008,1717903833721,-1086.63,0.00024536,2]
[328862009,1717903833733,-434.0,0.00024553,2]
[328862010,1717903833746,-250.0,0.00024553,2]
[328862011,1717903833758,-443.61,0.00024554,2]
[328862012,1717903833769,-155.31,0.0002458,2]
[328862013,1717903833783,-443.61,0.00024621,2]
[328862014,1717903833796,-339.87385183,0.00024658,2]
[328862015,1717903833807,-443.61,0.00024688,2]
[328862016,1717903833818,-173.54,0.00024712,2]
[328862017,1717903833828,-443.61,0.00024755,2]
[328862018,1717903833841,-443.61,0.00024821,2]
[328862019,1717903833852,-250.0,0.00024839,2]
[328862020,1717903833864,-1221.85308037,0.00024846,3]
[328862021,1717903833877,-250.0,0.00024856,2]
[328862022,1717903833889,-443.61,0.00024888,2]
[328862023,1717903833900,-2008.52,0.000249,2]
[328862024,1717903833913,-6797.18284586,0.000249,2]
[328862025,1717903833924,-214.12,0.00024919,2]
[328862026,1717903833935,-523.37,0.00024935,2]
[328862027,1717903833947,-155.17270824,0.00024945,2]
[328862028,1717903833958,-155.14044615,0.00024946,2]
[328862029,1717903833970,-4021.81582377,0.00024946,2]
[328862030,1717903833986,-2261.90280776,0.00024946,2]
[328862031,1717903834004,-1263.27242915,0.00024947,2]
[328862033,1717903834411,-736.72757085,0.00024947,2]
[328862036,1717903834424,-200.0,0.00024947,2]
[328862039,1717903834436,-716.81721394,0.00024947,2]
[328862058,1717903839939,-527.3426415,0.00024947,2]
[328862062,1717903839955,-755.84014456,0.00024947,2]
[328862064,1717903839969,-200.0,0.00024947,2]
[328862066,1717903839981,-1741.01883767,0.00024947,2]
[328862068,1717903839996,-200.0,0.00024947,2]
[328862070,1717903840008,-761.58865,0.00024947,2]
[328862073,1717903840021,-200.0,0.00024947,2]
[328862075,1717903840033,-443.61,0.00024955,2]
[328862077,1717903840046,-1250.0,0.00025,2]
[328862079,1717903840058,-930.36947179,0.00025,2]
[328862081,1717903840071,-155.0,0.00025021,2]
[328862082,1717903840083,-443.61,0.00025022,2]
[328862083,1717903840097,-167.34,0.00025022,2]
[328862084,1717903840108,-443.61,0.00025088,2]
[328862085,1717903840120,-443.61,0.00025155,2]
[328862086,1717903840132,-2000.0,0.00025196,2]
[328862087,1717903840146,-200.0,0.00025196,2]
[328862088,1717903840158,-1706.70706596,0.00025196,2]
[328862090,1717903843009,-293.29293404,0.00025196,2]
[328862091,1717903843021,-200.0,0.00025196,2]
[328862092,1717903843032,-200.0,0.00025196,2]
[328862093,1717903843042,-200.0,0.00025196,2]
[328862094,1717903843052,-501.55,0.00025205,2]
[328862095,1717903843062,-443.61,0.00025222,2]
[328862096,1717903843072,-443.61,0.00025289,2]
[328862097,1717903843083,-167.0,0.0002532,2]
[328862098,1717903843094,-443.61,0.00025356,2]
[328862099,1717903843103,-443.61,0.00025422,2]
[328862100,1717903843113,-2000.0,0.00025448,2]
[328862101,1717903843368,-200.0,0.00025448,2]
[328862102,1717903843414,-2000.0,0.00025448,2]
[328862103,1717903843428,-200.0,0.00025448,2]
[328862104,1717903843438,-443.61,0.00025489,2]
[328862105,1717903843448,-443.61,0.00025556,2]
[328862106,1717903843458,-443.61,0.00025623,2]
[328862107,1717903843468,-201.0,0.00025703,2]
[328862108,1717903843478,-2000.0,0.00025703,2]
[328862109,1717903843488,-200.0,0.00025703,2]
[328862110,1717903843498,-2000.0,0.00025703,2]
[328862111,1717903843508,-200.0,0.00025703,2]
[328862112,1717903843518,-434.0,0.0002578,2]
[328862113,1717903843529,-1191.811,0.0002585,2]
[328862114,1717903843539,-366.53631736,0.0002596,2]
[328862122,1717903844292,-1633.46368264,0.0002596,2]
[328862124,1717903844303,-200.0,0.0002596,2]
[328862127,1717903844314,-2000.0,0.0002596,2]
[328862129,1717903844324,-200.0,0.0002596,2]
[328862131,1717903844334,-3000.0,0.00026,2]
[328862133,1717903844345,-155.0,0.00026471,2]
[328862134,1717903844356,-932.24111454,0.00026653,2]
[328862135,1717903844365,-155.63277685,0.00026754,2]
[328862136,1717903844376,-1300.0,0.00027,2]
[328862137,1717903844386,-434.0,0.00027008,2]
[328862138,1717903844396,-180.0,0.00027054,2]
[328862139,1717903844407,-159.84301134,0.000271,2]
[328862140,1717903844417,-1000.0,0.00027147,2]
[328862141,1717903844427,-523.37,0.00027199,2]
[328862142,1717903844437,-1086.63,0.00027275,2]
[328862143,1717903844447,-155.9689418,0.00027292,2]
[328862144,1717903844457,-1221.85308038,0.00027299,4]
[328862145,1717903844467,-814.04374891,0.0002739,2]
[328862146,1717903844477,-203.21668702,0.00027397,7]
[328862147,1717903844487,-150.0,0.00027397,2]
[328862148,1717903844497,-172.81,0.00027397,2]
[328862149,1717903844508,-158.57688569,0.00027398,2]
[328862150,1717903844518,-447.43635511,0.00027398,2]
[328862151,1717903844529,-305.44015871,0.00027399,2]
[328862152,1717903844539,-1763.35506716,0.00027399,2]
[328862153,1717903844549,-325.0,0.000274,2]
[328862154,1717903844559,-200.0,0.000274,2]
[328862155,1717903844570,-5723.0,0.000274,2]
[328862156,1717903844580,-5292.75145697,0.000274,2]
[328862157,1717903844594,-591.21288238,0.000274,2]
[328862158,1717903844607,-222.76422777,0.000274,2]
[328862159,1717903844617,-144.33577224,0.000274,2]
[328862160,1717903844735,-643.65507974,0.000274,2]
[328862163,1717903844748,-578.06080476,0.000274,2]
[328862171,1717903846772,-2219.94834326,0.000274,2]
[328862172,1717903846783,-500.0,0.000274,2]
[328862173,1717903846793,-1003.0,0.000274,2]
[328862174,1717903846804,-250.0,0.000274,2]
[328862175,1717903846814,-600.0,0.000274,2]
[328862176,1717903846824,-553.31270654,0.000274,2]
[328862177,1717903846837,-201.95501141,0.000274,2]
[328862178,1717903846849,-155.9689418,0.00027487,2]
[328862179,1717903846859,-178.21455085,0.00027519,2]
[328862180,1717903846869,-1621.96070247,0.00027537,2]
[328862181,1717903846879,-300.2625,0.00027538,2]
[328862182,1717903846889,-7500.0,0.00027538,2]
[328862183,1717903846899,-682.0189,0.00027538,2]
[328862184,1717903846909,-215.0,0.00027538,2]
[328862185,1717903846921,-334.22129598,0.00027538,2]
[328862186,1717903846931,-2516.55701399,0.00027539,2]
[328862187,1717903846942,-624.9042896,0.00027539,2]
[328862188,1717903846952,-187.783832,0.00027574,2]
[328862189,1717903846963,-411.07916426,0.00027574,2]
[328862190,1717903846973,-770.82991664,0.00027598,2]
[328862191,1717903846987,-605.03628336,0.00027598,2]
[328862192,1717903846997,-348.63371664,0.0002761,2]
[328862193,1717903849080,-935.0,0.000209,5]
[328862194,1717903849090,-0.61628336,0.0002761,2]
[328862195,1717903849100,-153.93,0.00027628,2]
[328862196,1717903849111,-151.21,0.00027628,2]
[328862197,1717903849121,-151.21,0.00027628,2]
[328862198,1717903849132,-1031.65,0.00027628,2]
[328862199,1717903849141,-45.94281757,0.00027628,2]
[328862200,1717903849153,-321.99999985,0.00027628,2]
[328862201,1717903849171,-663.70718258,0.00027628,2]
[328862202,1717903849181,-176.29281743,0.00027628,2]
[328862203,1717903849193,-500.0,0.00027628,2]
[328862204,1717903849205,-355.35718257,0.00027628,2]
[328862205,1717903849216,-262.87438186,0.00027628,2]
[328862207,1717903849918,-768.77561814,0.00027628,2]
[328862210,1717903849929,-1031.65,0.00027628,2]
[328862211,1717903849938,-229.45849983,0.00027628,2]
[328862213,1717903849948,-21.70935721,0.00027629,2]
[328862216,1717903849961,-129.50064279,0.00027629,2]
[328862218,1717903849973,-202.61145259,0.00027629,2]
[328862220,1717903849983,-196.14574824,0.00027637,2]
[328862222,1717903849993,-282.98712628,0.00027637,2]
[328862224,1717903850004,-500.0,0.00027637,2]
[328862225,1717903850013,-200.11854634,0.00027637,2]
[328862226,1717903850023,-391.25118379,0.00027637,2]
[328862227,1717903850034,-354.61938982,0.00027637,2]
[328862228,1717903850043,-500.0,0.00027637,2]
[328862229,1717903850054,-500.0,0.00027637,2]
[328862230,1717903850064,-500.0,0.00027637,2]
[328862231,1717903850076,-396.12329548,0.00027637,2]
[328862232,1717903850086,-500.0,0.00027637,2]
[328862233,1717903850097,-286820.94106445,0.00027638,2]
[328862234,1717903850111,-404399.27468256,0.00027638,2]
[328862235,1717903850121,-71694.9964,0.00027639,2]
[328862236,1717903850131,-100000.0,0.00027639,2]
[328862237,1717903850141,-386.1514,0.00027654,2]
[328862238,1717903850151,-182.0,0.00027699,5]
[328862239,1717903850161,-39320.5582,0.00027699,2]
[328862240,1717903850175,-161.78073483,0.00027747,2]
[328862241,1717903850185,-1526.98382409,0.0002775,2]
[328862242,1717903850196,-600.0,0.00027764,2]
[328862243,1717903850208,-500.0,0.000278,10]
[328862244,1717903850219,-2516.55701394,0.00027801,2]
[328862245,1717903850230,-155.9689418,0.00027804,2]
[328862246,1717903850243,-161.78073483,0.00027814,2]
[328862247,1717903850253,-151.922276,0.00027826,2]
[328862248,1717903850263,-219.314795,0.00027826,2]
[328862249,1717903850273,-159.812512,0.00027826,2]
[328862250,1717903850283,-253.597096,0.00027826,2]
[328862251,1717903850293,-1621.96070247,0.00027875,2]
[328862252,1717903850303,-32703.49787816,0.000279,10]
[328862253,1717903850313,-1000.0,0.000279,10]
[328862254,1717903850323,-159.6648569,0.00027921,2]
[328862255,1717903850333,-168.68549708,0.00027987,2]
[328862256,1717903850343,-468.94608337,0.00028,2]
[328862257,1717903850354,-300.0,0.00028,2]
[328862258,1717903850364,-1406.40809655,0.00028,3]
[328862259,1717903850374,-2516.55701394,0.00028064,2]
[328862260,1717903850384,-445.46,0.00028082,2]
[328862261,1717903850394,-155.28152304,0.00028109,2]
[328862262,1717903850404,-156.2398067,0.00028114,2]
[328862263,1717903850415,-150.0,0.00028118,2]
[328862264,1717903850425,-500.0,0.00028123,2]
[328862265,1717903850435,-624.90428958,0.00028205,2]
[328862266,1717903850445,-1621.96070247,0.00028212,2]
[328862267,1717903850455,-434.0,0.00028236,2]
[328862268,1717903850465,-702.56668518,0.00028269,2]
[328862269,1717903850477,-159.812512,0.00028289,2]
[328862270,1717903850488,-1038.0,0.000283,2]
[328862271,1717903850500,-2516.55701394,0.00028326,2]
[328862272,1717903850511,-154.87,0.00028356,2]
[328862273,1717903850523,-422.59,0.00028356,2]
[328862274,1717903850535,-302.46,0.00028356,2]
[328862275,1717903850546,-411.3,0.00028356,2]
[328862276,1717903850557,-152.93,0.00028356,2]
[328862277,1717903850567,-713.74,0.00028356,2]
[328862278,1717903850578,-302.39,0.00028356,2]
[328862279,1717903850588,-1063.43,0.00028356,2]
[328862280,1717903850598,-150.0,0.00028356,2]
[328862281,1717903850610,-151.56,0.00028356,2]
[328862282,1717903850620,-422.59,0.00028356,2]
[328862283,1717903850630,-353.37,0.00028356,2]
[328862284,1717903850640,-526.32,0.00028356,2]
[328862285,1717903850649,-422.59,0.00028356,2]
[328862286,1717903850660,-853.17,0.00028356,2]
[328862287,1717903850670,-526.32,0.00028356,2]
[328862288,1717903850680,-150.0,0.00028356,2]
[328862289,1717903850690,-150.0,0.00028356,2]
[328862290,1717903850702,-353.37,0.00028356,2]
[328862291,1717903850713,-526.32,0.00028356,2]
[328862292,1717903850723,-353.37,0.00028356,2]
[328862293,1717903850734,-150.0,0.00028356,2]
[328862294,1717903850743,-150.0,0.00028356,2]
[328862295,1717903850754,-422.59,0.00028356,2]
[328862296,1717903850764,-526.32,0.00028356,2]
[328862297,1717903850773,-353.37,0.00028356,2]
[328862298,1717903850783,-302.74,0.00028356,2]
[328862299,1717903850794,-422.59,0.00028356,2]
[328862300,1717903850805,-422.59,0.00028356,2]
[328862301,1717903850815,-526.32,0.00028356,2]
[328862302,1717903850825,-353.37,0.00028356,2]
[328862303,1717903850837,-422.59,0.00028356,2]
[328862304,1717903850847,-526.32,0.00028356,2]
[328862305,1717903850859,-353.37,0.00028356,2]
[328862306,1717903850869,-422.59,0.00028356,2]
[328862307,1717903850879,-526.32,0.00028356,2]
[328862308,1717903850890,-353.37,0.00028356,2]
[328862309,1717903850899,-526.32,0.00028356,2]
[328862310,1717903850909,-371.18,0.00028356,2]
[328862311,1717903850920,-353.37,0.00028356,2]
[328862312,1717903850929,-526.32,0.00028356,2]
[328862313,1717903850941,-422.39,0.00028356,2]
[328862314,1717903850951,-353.37,0.00028356,2]
[328862315,1717903850961,-526.32,0.00028356,2]
[328862316,1717903850971,-353.37,0.00028356,2]
[328862317,1717903850981,-526.32,0.00028356,2]
[328862318,1717903850993,-350.94,0.00028356,2]
[328862319,1717903851003,-526.32,0.00028356,2]
[328862320,1717903851013,-526.32,0.00028356,2]
[328862321,1717903851022,-526.32,0.00028356,2]
[328862322,1717903851032,-526.32,0.00028356,2]
[328862323,1717903851042,-526.32,0.00028356,2]
[328862324,1717903851053,-526.32,0.00028356,2]
[328862325,1717903851063,-168.68549706,0.0002837,2]
[328862326,1717903851075,-151.0,0.00028466,7]
[328862327,1717903851086,-500.0,0.00028469,2]
[328862328,1717903851096,-722.12154895,0.00028488,2]
[328862329,1717903851109,-1110.06302071,0.000285,4]
[328862330,1717903851119,-8932.50564112,0.000285,3]
[328862331,1717903851129,-159.6648569,0.00028515,2]
[328862332,1717903851138,-1621.96070247,0.0002855,2]
[328862333,1717903851148,-155.9689418,0.00028581,2]
[328862334,1717903851159,-2516.55701394,0.00028588,2]
[328862335,1717903851172,-188.9851529,0.00028645,2]
[328862336,1717903851183,-5952.09959306,0.00028645,2]
[328862337,1717903851194,-151.0,0.00028685,7]
[328862338,1717903851207,-282.99569921,0.00028699,2]
[328862339,1717903851217,-1203.96907319,0.000287,2]
[328862340,1717903851228,-169.14140858,0.000287,2]
[328862341,1717903851238,-338.1059508,0.000287,7]
[328862342,1717903851250,-509.0,0.000287,12]
[328862343,1717903851260,-345.0,0.000287,2]
[328862344,1717903851270,-150.0,0.000287,2]
[328862345,1717903851279,-190.0,0.000287,12]
[328862346,1717903851289,-1500.0,0.000287,10]
[328862347,1717903851300,-150.0,0.000287,5]
[328862348,1717903851310,-4466.77,0.00028719,2]
[328862349,1717903851321,-334.22129598,0.00028719,2]
[328862350,1717903851330,-151.21,0.00028722,2]
[328862351,1717903851340,-19705.55821115,0.00028732,2]
[328862352,1717903851350,-168.68549706,0.00028752,2]
[328862353,1717903851363,-159.812512,0.00028753,2]
[328862354,1717903851373,-5952.09959295,0.00028759,2]
[328862355,1717903851382,-3000.0,0.000288,2]
[328862356,1717903851392,-2000.0,0.000288,10]
[328862357,1717903851403,-150.0,0.00028839,2]
[328862358,1717903851414,-155.9689418,0.00028847,2]
[328862359,1717903851423,-1187.0,0.0002885,2]
[328862360,1717903851433,-2516.55701394,0.00028851,2]
[328862361,1717903851443,-3537.107452,0.00028869,2]
[328862362,1717903851452,-3522.459895,0.00028869,2]
[328862363,1717903851463,-285.66678777,0.00028873,5]
[328862364,1717903851473,-5952.09959295,0.00028873,2]
[328862365,1717903851483,-206.93421223,0.0002888,2]
[328862366,1717903851492,-2395.75270542,0.0002888,2]
[328862367,1717903851503,-161.94675676,0.0002888,2]
[328862368,1717903851512,-152.0,0.00028881,3]
[328862369,1717903851522,-1621.96070247,0.00028887,2]
[328862370,1717903851532,-160.0,0.000289,2]
[328862371,1717903851542,-201.095576,0.000289,2]
[328862372,1717903851552,-2500.0,0.000289,10]
[328862373,1717903851562,-153.04,0.00028904,2]
[328862374,1717903851572,-150.0,0.00028904,2]
[328862375,1717903851582,-150.0,0.00028904,2]
[328862376,1717903851592,-150.0,0.00028904,2]
[328862377,1717903851603,-151.0,0.00028905,7]
[328862378,1717903851612,-600.0,0.00028921,2]
[328862379,1717903851622,-500.0,0.00028942,15]
[328862380,1717903851632,-500.0,0.00028942,15]
[328862381,1717903851641,-179.67179606,0.00028949,21]
[328862382,1717903851651,-6797.18284586,0.00028969,2]
[328862383,1717903851661,-151.21,0.0002897,2]
[328862384,1717903851671,-219.0,0.0002897,15]
[328862385,1717903851681,-153.93,0.0002897,2]
[328862386,1717903851691,-153.93,0.0002897,2]
[328862387,1717903851701,-153.93,0.0002897,2]
[328862388,1717903851712,-151.21,0.0002897,2]
[328862389,1717903851722,-151.21,0.0002897,2]
[328862390,1717903851731,-205509.29162615,0.00028971,13]
[328862391,1717903851741,-196359.22796424,0.00028971,7]
[328862405,1717904973174,-155.0,0.00017259,2]
[328862406,1717904973198,-7540.27538436,0.00017259,2]
[328862414,1717905033434,-3893.22745947,0.000192,2]
[328862415,1717905033446,-152.39,0.00019876,2]
[328862416,1717905033456,-155.0,0.0002,2]
[328862417,1717905033467,-499.99,0.00020052,2]
[328862418,1717905033477,-150.0,0.0002074,2]
[328862420,1717905033488,-558.51599373,0.00020768,2]
[328862422,1717905033500,-500.0,0.00022602,2]
[328862424,1717905033512,-500.0,0.00022602,2]
[328862426,1717905033525,-503.71,0.0002286,2]
[328862427,1717905033537,-29426.51523216,0.000236,2]
[328862428,1717905033548,-500.0,0.00023698,2]
[328862429,1717905033560,-500.0,0.00023698,2]
[328862430,1717905033573,-300.0,0.00024031,2]
[328862431,1717905033584,-173.55,0.00024384,2]
[328862432,1717905033598,-156.8,0.00024384,2]
[328862433,1717905033610,-5584.17,0.00024598,2]
[328862434,1717905033620,-250.0,0.000246,2]
[328862435,1717905033631,-155.55,0.00024629,2]
[328862436,1717905033642,-672.37,0.00024646,2]
[328862437,1717905033655,-150.0,0.00024646,2]
[328862438,1717905033665,-15104.17,0.00024661,2]
[328862439,1717905033675,-500.0,0.0002469,2]
[328862440,1717905033686,-200.0,0.00024724,2]
[328862441,1717905033698,-769.57,0.00024751,2]
[328862442,1717905033708,-250.0,0.00024761,2]
[328862443,1717905033719,-170.5,0.00024772,2]
[328862444,1717905033730,-500.0,0.00024794,2]
[328862445,1717905033740,-500.0,0.00024794,2]
[328862446,1717905033751,-250.0,0.00024822,2]
[328862447,1717905033763,-1000.0,0.00024948,2]
[328862448,1717905033775,-167.23,0.00024975,2]
[328862449,1717905033787,-1250.0,0.00025,2]
[328862450,1717905033799,-159.09108089,0.00025,2]
[328862451,1717905033810,-326.00087513,0.00025,2]
[328862452,1717905033820,-155.0,0.0002507,2]
[328862453,1717905033831,-1404.72,0.00025071,2]
[328862454,1717905033842,-503.71,0.00025123,2]
[328862455,1717905033856,-167.23,0.00025626,2]
[328862456,1717905033868,-155.55,0.00025861,2]
[328862457,1717905033880,-23534.25625495,0.00026,5]
[328862458,1717905033891,-754.71874064,0.0002608,2]
[328862459,1717905033902,-167.3902685,0.00026174,2]
[328862460,1717905033912,-167.23,0.00026277,2]
[328862461,1717905033922,-3000.0,0.000263,2]
[328862462,1717905033933,-167.42,0.00026352,2]
[328862463,1717905033944,-154.54095259,0.00026635,2]
[328862464,1717905033954,-161.78073485,0.00026818,2]
[328862465,1717905033964,-151.0,0.0002682,7]
[328862466,1717905033974,-200.978798,0.000269,2]
[328862467,1717905033984,-269.37318977,0.00026916,2]
[328862468,1717905033995,-1300.0,0.00027,2]
[328862469,1717905034005,-4029.88662948,0.00027,2]
[328862470,1717905034016,-381.46525415,0.00027,2]
[328862471,1717905034026,-200.0,0.00027,2]
[328862472,1717905034036,-155.55,0.00027092,2]
[328862473,1717905034047,-197.79796196,0.0002713,2]
[328862474,1717905034059,-180.0,0.00027196,2]
[328862475,1717905034069,-1573.0,0.00027247,2]
[328862476,1717905034080,-1212.94,0.00027247,2]
[328862477,1717905034090,-452.62035728,0.00027327,2]
[328862478,1717905034100,-334.22129598,0.00027327,2]
[328862479,1717905034111,-1006.62280563,0.00027331,2]
[328862480,1717905034123,-672.37,0.00027386,2]
[328862481,1717905034133,-503.71,0.00027387,2]
[328862482,1717905034143,-246.86796234,0.0002739,2]
[328862483,1717905034154,-150.0,0.00027397,2]
[328862484,1717905034164,-172.5,0.00027397,2]
[328862485,1717905034174,-200.0,0.000274,2]
[328862486,1717905034185,-5723.22378787,0.000274,2]
[328862487,1717905034195,-6992.1663951,0.00027409,2]
[328862488,1717905034206,-155.96894183,0.00027412,2]
[328862489,1717905034216,-153.94,0.00027416,2]
[328862490,1717905034227,-500.0,0.00027425,2]
[328862491,1717905034239,-279.50916553,0.00027425,2]
[328862492,1717905034252,-500.0,0.00027425,2]
[328862493,1717905034262,-388.62806191,0.00027425,2]
[328862494,1717905034272,-462.58161298,0.00027425,2]
[328862495,1717905034283,-500.0,0.00027425,2]
[328862496,1717905034293,-403.16807356,0.00027425,2]
[328862497,1717905034303,-500.0,0.00027425,2]
[328862498,1717905034314,-500.0,0.00027425,2]
[328862499,1717905034324,-500.0,0.00027425,2]
[328862500,1717905034334,-500.0,0.00027425,2]
[328862501,1717905034347,-254.73097139,0.00027425,2]
[328862502,1717905034357,-500.0,0.00027425,2]
[328862503,1717905034370,-500.0,0.00027425,2]
[328862504,1717905034382,-266.23592172,0.00027425,2]
[328862505,1717905034394,-110591.6524707,0.00027426,2]
[328862506,1717905034438,-4044.72301169,0.00027426,2]
[328862524,1717905039459,-226.67450997,0.000201,2]
[328862525,1717905039470,-675.19845167,0.00027327,2]
[328862526,1717905039480,-839.09801247,0.00027424,10]
[328862527,1717905039493,-444.37989155,0.00027424,10]
[328862528,1717905040091,-6042.88438236,0.00027424,10]
[328862529,1717905040102,-2602.29036112,0.00027426,2]
[328862530,1717905040115,-3700.62304756,0.00027426,2]
[328862531,1717905040129,-5738.82288882,0.00027426,2]
[328862532,1717905040142,-22130.64964227,0.00027426,2]
[328862533,1717905040155,-9931.79443999,0.00027426,2]
[328862534,1717905040168,-2395.23304635,0.00027426,2]
[328862535,1717905040181,-1004.94308737,0.00027426,2]
[328862536,1717905040194,-1208.14879983,0.00027426,2]
[328862538,1717905040208,-7480.63127704,0.00027426,2]
[328862541,1717905040220,-16712.44953595,0.00027426,2]
[328862543,1717905040233,-6940.378292,0.00027426,2]
[328862545,1717905040246,-1876.900965,0.00027426,2]
[328862547,1717905040259,-10700.675198,0.00027426,2]
[328862550,1717905040272,-11181.0,0.00027426,2]
[328862571,1717905040285,-407.01954699,0.00027426,2]
[328862851,1717905043485,-4302.47403612,0.00027426,2]
[328862901,1717905043977,-298.31412405,0.00027426,2]
[328863028,1717905045699,-817.87421256,0.00027426,2]
[328863029,1717905046234,-496.42939677,0.00027426,2]
[328863030,1717905046246,-250.0,0.00027426,2]
[328863040,1717905054789,180.42404032,0.00017259,2]
[328863041,1717905095979,176.01,0.0002662,120]
[328863042,1717905097576,1892.46609546,0.00017259,2]
[328863043,1717905118867,621.08992467,0.00017259,2]
[328863045,1717906050184,-155.0,0.00017057,2]
[328863046,1717906050215,-492.33801853,0.00017058,2]
[328863047,1717906050244,-492.33801851,0.00017109,2]
[328863048,1717906050271,-155.32461979,0.00017158,2]
[328863049,1717906050300,-492.33801851,0.00017159,2]
[328863050,1717906050329,-3221.7784039,0.00017259,2]
[328863051,1717906174101,-22522.55322219,0.00017259,2]
[328863052,1717906174123,-3861.5,0.000199,2]
[328863053,1717906174147,-448.37568752,0.0002,2]
[328863054,1717906174171,-226.67450997,0.000201,2]
[328863055,1717906174195,-1000.0,0.00021574,2]
[328863056,1717906174218,-2541.61,0.00021574,2]
[328863057,1717906174241,-499.99,0.00021574,2]
[328863058,1717906174262,-1702.0,0.000221,2]
[328863059,1717906174284,-598.0,0.000221,2]
[328863060,1717906174307,-509.98,0.000221,2]
[328863061,1717906174329,-1000.0,0.00022348,2]
[328863062,1717906174364,155.0,0.0002,2]
[328863063,1717906186454,226.67450997,0.00021734,2]
[328863064,1717906206533,226.67450997,0.00021734,2]
[328863065,1717906226458,226.67450997,0.00021734,2]
[328863086,1717906232003,-500.0,0.00022602,2]
[328863087,1717906232013,-433.49206678,0.00022602,2]
[328863088,1717906232025,-66.50793322,0.00022602,2]
[328863089,1717906232035,-500.0,0.00022602,2]
[328863090,1717906232044,-231.95975869,0.00023099,2]
[328863091,1717906232056,-249.87024131,0.00023099,2]
[328863092,1717906232068,-93.25475869,0.00023698,2]
[328863093,1717906232107,-406.74524131,0.00023698,2]
[328863094,1717906232117,-437.26447453,0.00023698,2]
[328863095,1717906232131,-62.73552547,0.00023698,2]
[328863096,1717906232141,-500.0,0.00023698,2]
[328863097,1717906232151,-2000.0,0.00024185,3]
[328863098,1717906232162,-2776.45,0.00024237,2]
[328863099,1717906232172,-250.0,0.00024294,2]
[328863100,1717906232182,-327.05,0.00024373,2]
[328863101,1717906232192,-170.57,0.00024384,2]
[328863102,1717906232202,-160.35,0.00024384,2]
[328863103,1717906232212,-200.0,0.00024401,2]
[328863104,1717906232223,-155.55,0.00024526,2]
[328863105,1717906232234,-250.0,0.00024759,2]
[328863106,1717906232245,-1000.0,0.00024786,2]
[328863107,1717906232255,-500.0,0.00024794,2]
[328863108,1717906232265,-500.0,0.00024794,2]
[328863109,1717906232275,-250.0,0.00024815,2]
[328863110,1717906232285,-170.5,0.00024848,2]
[328863111,1717906232295,-1250.0,0.00025,2]
[328863112,1717906232305,-481.83,0.00025363,2]
[328863113,1717906232315,-171.92,0.00025727,2]
[328863114,1717906232326,-500.0,0.0002589,2]
[328863115,1717906232337,-500.0,0.0002589,2]
[328863116,1717906232348,-197.79796197,0.00026293,2]
[328863117,1717906232359,-166.83499667,0.00026459,2]
[328863118,1717906232370,-167.34,0.00026486,2]
[328863119,1717906232381,-197.79796197,0.00026584,2]
[328863120,1717906232392,-165.96870903,0.00026679,2]
[328863121,1717906232404,-235.25,0.00026701,2]
[328863122,1717906232414,-526.32,0.00026712,2]
[328863123,1717906232425,-526.32,0.00026712,2]
[328863124,1717906232436,-526.32,0.00026712,2]